bitfinex/quotes_BTCUSD_20240613
["timestamp","ask_amount","ask_price","bid_price","bid_amount"]
[1718301906833,0.014,66756.0,66755.0,0.54135367]
[1718301907063,0.014,66756.0,66755.0,0.5413379]
[1718301907283,0.027,66756.0,66755.0,0.49658611]
[1718301907702,0.027,66756.0,66755.0,0.77420294]
[1718301907874,0.027,66756.0,66755.0,0.75420294]
[1718301908111,0.013,66756.0,66755.0,0.48013278]
[1718301908298,0.014,66756.0,66755.0,0.32778866]
[1718301908500,0.001,66756.0,66755.0,0.47758966]
[1718301908705,0.001,66756.0,66755.0,0.78555291]
[1718301909149,0.0635,66773.0,66758.0,0.149794]
[1718301909495,0.16431993,66772.0,66759.0,0.12427233]
[1718301909614,0.16431993,66772.0,66760.0,0.12427233]
[1718301910047,0.16431993,66772.0,66756.0,0.149799]
[1718301910247,0.14431993,66772.0,66758.0,0.0789]
[1718301910453,0.14431993,66772.0,66758.0,0.0799]
[1718301910762,0.02,66770.0,66759.0,0.12676818]
[1718301910965,0.14431993,66769.0,66760.0,0.12427342]
[1718301911164,0.14431993,66769.0,66759.0,0.00249476]
[1718301911378,0.14431993,66769.0,66760.0,0.12427399]
[1718301911599,0.14431993,66769.0,66760.0,0.00249476]
[1718301911779,0.14431993,66769.0,66757.0,0.149796]
[1718301911983,0.14431993,66769.0,66758.0,0.00249476]
[1718301912550,0.13681993,66769.0,66758.0,0.00249476]
[1718301912771,0.0802,66768.0,66758.0,0.00249476]
[1718301912982,0.14431993,66767.0,66758.0,0.00249476]
[1718301914852,0.14431993,66767.0,66766.0,0.149776]
[1718301915083,0.003,66769.0,66766.0,0.149776]
[1718301915084,0.003,66769.0,66768.0,0.149772]
[1718301915280,0.14731993,66769.0,66768.0,0.149772]
[1718301915483,0.14431993,66769.0,66768.0,0.15222986]
[1718301916131,0.0637,66781.0,66768.0,0.00245786]
[1718301916372,0.14431993,66780.0,66772.0,0.0799]
[1718301916596,0.14431993,66780.0,66773.0,0.0024575]
[1718301916999,0.000946,66782.0,66781.0,0.149743]
[1718301917217,0.000946,66782.0,66777.0,0.0193]
[1718301917218,0.14526593,66782.0,66777.0,0.16905]
[1718301917438,0.14431993,66781.0,66777.0,0.16905]
[1718301917902,0.14431993,66781.0,66778.0,0.149748]
[1718301918348,0.008,66780.0,66774.0,0.149758]
[1718301918998,0.01,66780.0,66774.0,0.149758]
[1718301919199,0.01,66780.0,66775.0,0.149756]
[1718301919611,0.14931993,66781.0,66775.0,0.149756]
[1718301919815,0.002,66780.0,66775.0,0.149756]
[1718301920240,0.14431993,66781.0,66775.0,0.149756]
[1718301920657,0.003,66780.0,66776.0,0.149754]
[1718301921261,0.004,66780.0,66776.0,0.149754]
[1718301921404,0.004,66780.0,66779.0,0.149747]
[1718301921602,0.003,66780.0,66775.0,0.149755]
[1718301922034,0.006,66780.0,66775.0,0.149755]
[1718301922445,0.006,66780.0,66770.0,0.04471033]
[1718301922446,0.20921993,66779.0,66770.0,0.04471033]
[1718301922648,0.20921993,66779.0,66769.0,0.14471033]
[1718301922850,0.20921993,66779.0,66769.0,0.1]
[1718301923078,0.20921993,66779.0,66775.0,0.001]
[1718301923726,0.21021993,66779.0,66775.0,0.001]
[1718301924190,0.20921993,66779.0,66775.0,0.001]
[1718301924401,0.20921993,66779.0,66768.0,0.1824]
[1718301924402,0.14731993,66779.0,66768.0,0.1824]
[1718301924629,0.02,66776.0,66766.0,0.00018029]
[1718301924841,0.14431993,66775.0,66769.0,0.001]
[1718301925058,0.02,66774.0,66769.0,0.001]
[1718301925260,0.14431993,66773.0,66766.0,0.00018029]
[1718301926590,0.50511975,66770.0,66766.0,0.00018029]
[1718301926800,0.53871993,66767.0,66766.0,0.00018029]
[1718301927057,0.63871993,66767.0,66766.0,0.001]
[1718301927269,0.66171993,66767.0,66766.0,0.001]
[1718301927729,0.02,66756.0,66755.0,1e-08]
[1718301927947,0.22851993,66756.0,66755.0,1e-08]
[1718301929233,0.31931993,66756.0,66755.0,1e-08]
[1718301929437,0.86931993,66756.0,66755.0,1e-08]
[1718301929668,0.85631993,66756.0,66755.0,1e-08]
[1718301930082,0.86631993,66756.0,66755.0,1e-08]
[1718301930308,1.04421993,66756.0,66755.0,1e-08]
[1718301930748,1.05821993,66756.0,66755.0,1e-08]
[1718301931161,1.04421993,66756.0,66755.0,1e-08]
[1718301931361,1.05821993,66756.0,66755.0,1e-08]
[1718301931839,1.03421993,66756.0,66755.0,1e-08]
[1718301932295,1.04821993,66756.0,66755.0,1e-08]
[1718301932750,1.03421993,66756.0,66755.0,1e-08]
[1718301932950,0.48421993,66756.0,66755.0,1e-08]
[1718301933161,0.49821993,66756.0,66755.0,1e-08]
[1718301933336,0.30031993,66756.0,66755.0,1e-08]
[1718301933577,0.17231993,66756.0,66755.0,1e-08]
[1718301933759,0.15831993,66756.0,66755.0,1e-08]
[1718301933963,0.15831993,66756.0,66755.0,0.00555483]
[1718301934191,0.15831993,66756.0,66755.0,1e-08]
[1718301934392,0.14431993,66756.0,66755.0,1e-08]
[1718301934591,0.15731993,66756.0,66755.0,1e-08]
[1718301934993,0.14431993,66756.0,66755.0,1e-08]
[1718301935192,0.15831993,66756.0,66755.0,1e-08]
[1718301935399,0.17231993,66756.0,66755.0,1e-08]
[1718301935613,0.17626742,66756.0,66755.0,1e-08]
[1718301936207,0.20926742,66756.0,66755.0,1e-08]
[1718301936430,0.18926742,66756.0,66755.0,1e-08]
[1718301936642,0.17626742,66756.0,66755.0,1e-08]
[1718301936876,0.16226742,66756.0,66755.0,1e-08]
[1718301937116,0.19026742,66756.0,66755.0,1e-08]
[1718301937593,0.17626742,66756.0,66755.0,1e-08]
[1718301937802,0.19026742,66756.0,66755.0,1e-08]
[1718301938251,0.17626742,66756.0,66755.0,1e-08]
[1718301938995,0.16226742,66756.0,66755.0,1e-08]
[1718301939443,0.17626742,66756.0,66755.0,1e-08]
[1718301939851,0.01794749,66756.0,66755.0,1e-08]
[1718301940067,0.014,66756.0,66755.0,0.17538287]
[1718301940479,0.02,66773.0,66755.0,0.00558187]
[1718301940680,0.14431993,66767.0,66756.0,0.0193]
[1718301941505,0.14431993,66767.0,66757.0,0.0055806]
[1718301942102,0.16431993,66767.0,66756.0,0.0193]
[1718301942308,0.16431993,66767.0,66756.0,0.001]
[1718301942309,0.02,66764.0,66756.0,0.001]
[1718301942509,0.14431993,66763.0,66756.0,0.001]
[1718301942711,0.14431993,66763.0,66755.0,1e-08]
[1718301943354,0.14431993,66763.0,66757.0,0.001]
[1718301944303,0.01790468,66768.0,66758.0,0.0055806]
[1718301944474,0.14431993,66767.0,66758.0,0.0055806]
[1718301944664,0.14431993,66767.0,66757.0,0.149795]
[1718301944871,0.14431993,66767.0,66759.0,0.0055806]
[1718301945184,0.007,66763.0,66757.0,0.149795]
[1718301945386,0.14431993,66767.0,66760.0,0.0055806]
[1718301945745,0.14431993,66767.0,66761.0,0.0055499]
[1718301945929,0.15131993,66767.0,66761.0,0.0055499]
[1718301946112,0.15131993,66767.0,66757.0,0.149795]
[1718301946660,0.15131993,66767.0,66762.0,0.149785]
[1718301946661,0.14831993,66767.0,66762.0,0.149785]
[1718301946888,0.14831993,66767.0,66760.0,0.149788]
[1718301947104,0.14431993,66767.0,66760.0,0.149788]
[1718301947337,0.14431993,66767.0,66761.0,0.0055499]
[1718301947555,0.003,66763.0,66761.0,0.0055499]
[1718301947780,0.14431993,66767.0,66761.0,0.0055499]
[1718301948005,0.14931993,66767.0,66761.0,0.0055499]
[1718301948214,0.15231993,66767.0,66761.0,0.0055499]
[1718301948612,0.14431993,66767.0,66761.0,0.0055499]
[1718301948949,0.007,66763.0,66761.0,0.0055499]
[1718301949149,0.007,66763.0,66762.0,0.268285]
[1718301949376,0.004,66763.0,66762.0,0.268285]
[1718301949550,0.004,66763.0,66762.0,0.27380796]
[1718301950421,0.003,66767.0,66762.0,0.12402296]
[1718301950828,0.007,66767.0,66762.0,0.12402296]
[1718301951006,0.0626,66778.0,66762.0,0.12402296]
[1718301951247,0.14431993,66776.0,66765.0,0.149778]
[1718301951676,0.14431993,66776.0,66763.0,0.00552209]
[1718301951896,0.14431993,66776.0,66766.0,0.00552209]
[1718301952130,0.006,66767.0,66766.0,0.149776]
[1718301952589,0.006,66767.0,66766.0,0.169776]
[1718301952794,0.006,66767.0,66766.0,0.149776]
[1718301952995,0.006,66767.0,66766.0,0.169776]
[1718301954114,0.006,66767.0,66766.0,0.149776]
[1718301954389,0.15331993,66776.0,66768.0,0.14977]
[1718301954633,0.15331993,66776.0,66768.0,0.02]
[1718301954634,0.16231993,66776.0,66768.0,0.02]
[1718301954857,0.01990582,66777.0,66762.0,0.0985]
[1718301954858,0.01990582,66777.0,66771.0,0.149764]
[1718301955073,0.01990582,66777.0,66772.0,0.079]
[1718301955074,0.16422575,66777.0,66772.0,0.079]
[1718301955330,0.14431993,66777.0,66772.0,0.079]
[1718301955562,0.000946,66779.0,66773.0,0.0193]
[1718301955788,0.000946,66779.0,66778.0,0.149749]
[1718301957734,0.001946,66779.0,66778.0,0.149749]
[1718301958189,0.000946,66779.0,66778.0,0.149749]
[1718301958566,0.000946,66779.0,66778.0,0.152749]
[1718301960929,0.000946,66779.0,66778.0,0.234049]
[1718301961590,0.000946,66779.0,66778.0,0.254049]
[1718301961761,0.000946,66779.0,66778.0,0.533548]
[1718301962266,0.000946,66779.0,66778.0,0.553548]
[1718301962914,0.000946,66779.0,66778.0,1.150247]
[1718301963363,0.000946,66779.0,66778.0,1.19487541]
[1718301963818,0.000946,66779.0,66778.0,1.150247]
[1718301964047,0.000946,66779.0,66778.0,1.148247]
[1718301964282,0.000946,66779.0,66778.0,1.19187561]
[1718301964489,0.001946,66779.0,66778.0,1.19387561]
[1718301964660,0.002946,66779.0,66778.0,1.151247]
[1718301965139,0.002946,66779.0,66778.0,1.550746]
[1718301965356,0.002946,66779.0,66778.0,1.80256723]
[1718301965794,0.002946,66779.0,66778.0,1.70256723]
[1718301966011,0.002946,66779.0,66778.0,0.673848]
[1718301966226,0.002946,66779.0,66778.0,1.02295739]
[1718301966430,0.002946,66779.0,66778.0,0.97834003]
[1718301967258,0.001946,66779.0,66778.0,0.97634003]
[1718301967616,0.002946,66779.0,66778.0,0.98134003]
[1718301967840,0.001946,66779.0,66778.0,0.97934003]
[1718301968041,0.000946,66779.0,66778.0,0.97434003]
[1718301968253,0.001946,66779.0,66778.0,1.2309545]
[1718301968464,0.000946,66779.0,66778.0,1.2279545]
[1718301968667,0.001946,66779.0,66778.0,1.2329545]
[1718301968863,0.002946,66779.0,66778.0,1.2359545]
[1718301969725,0.002946,66779.0,66778.0,2.25529325]
[1718301969932,0.002946,66779.0,66778.0,2.46245934]
[1718301970106,0.000946,66782.0,66781.0,1.467901]
[1718301970308,0.000946,66782.0,66781.0,2.23788123]
[1718301970530,0.000946,66782.0,66781.0,3.63571322]
[1718301970663,0.000946,66782.0,66781.0,3.73142989]
[1718301971637,0.000946,66782.0,66781.0,3.92242938]
[1718301972079,0.000946,66782.0,66781.0,2.93081338]
[1718301972274,0.001946,66782.0,66781.0,2.46474218]
[1718301972434,0.001946,66782.0,66781.0,2.66206218]
[1718301972633,0.001946,66782.0,66781.0,2.70658572]
[1718301973071,0.001946,66782.0,66781.0,2.37532117]
[1718301973288,0.001946,66782.0,66781.0,2.70765499]
[1718301973500,0.002946,66782.0,66781.0,2.71765499]
[1718301974072,0.002946,66782.0,66781.0,2.71764583]
[1718301974275,0.002946,66782.0,66781.0,2.71752152]
[1718301977007,0.002946,66782.0,66781.0,2.69452152]
[1718301977218,0.002946,66782.0,66781.0,2.65910998]
[1718301977630,0.002946,66782.0,66781.0,2.70361816]
[1718301977829,0.002946,66782.0,66781.0,2.65910998]
[1718301978402,0.002946,66782.0,66781.0,2.72588151]
[1718301980113,0.002946,66782.0,66781.0,2.72596053]
[1718301980707,0.002946,66782.0,66781.0,2.65923619]
[1718301980963,0.002946,66782.0,66781.0,2.37142398]
[1718301981192,0.002946,66782.0,66781.0,2.65923619]
[1718301981589,0.002946,66782.0,66781.0,2.6616677]
[1718301982196,0.002946,66782.0,66781.0,2.66168951]
[1718301982398,0.002946,66782.0,66781.0,2.75074542]
[1718301983026,0.002946,66782.0,66781.0,2.75075238]
[1718301983232,0.002946,66782.0,66781.0,2.66167649]
[1718301984303,0.002946,66782.0,66781.0,2.77310569]
[1718301984503,0.002946,66782.0,66781.0,2.83298169]
[1718301985230,0.002946,66782.0,66781.0,2.43373149]
[1718301985442,0.002946,66782.0,66781.0,2.83294926]
[1718301985660,0.002946,66782.0,66781.0,2.72154098]
[1718301986311,0.002946,66782.0,66781.0,2.43373149]
[1718301986529,0.002946,66782.0,66781.0,2.72153337]
[1718301987319,0.002946,66782.0,66781.0,2.52420899]
[1718301987670,0.002946,66782.0,66781.0,3.22632099]
[1718301987880,0.002946,66782.0,66781.0,3.22593037]
[1718301989195,0.002946,66782.0,66781.0,3.54652072]
[1718301990357,0.002946,66782.0,66781.0,3.19354672]
[1718301990646,0.002946,66782.0,66781.0,3.03045772]
[1718301990776,0.002946,66782.0,66781.0,2.80986737]
[1718301991382,0.002946,66782.0,66781.0,2.8088832]
[1718301991583,0.002946,66782.0,66781.0,3.17510323]
[1718301991940,0.002946,66782.0,66781.0,3.19347373]
[1718301992147,0.002946,66782.0,66781.0,2.90705102]
[1718301992328,0.002946,66782.0,66781.0,3.60512285]
[1718301993156,0.002946,66782.0,66781.0,3.19351584]
[1718301993369,0.002946,66782.0,66781.0,3.60492144]
[1718301993522,0.002946,66782.0,66781.0,3.47091217]
[1718301994362,0.002946,66782.0,66781.0,3.60485852]
[1718301995239,0.002946,66782.0,66781.0,3.47130926]
[1718301995657,0.000946,66797.0,66793.0,0.76858]
[1718301995878,0.000946,66797.0,66793.0,1.4567828]
[1718301996082,0.000946,66797.0,66793.0,1.44507632]
[1718301996242,0.000946,66797.0,66793.0,1.32088259]
[1718301996447,0.000946,66797.0,66793.0,1.44506407]
[1718301997085,0.000946,66797.0,66793.0,1.45006407]
[1718301997292,0.000946,66797.0,66793.0,1.32588259]
[1718301997534,0.000946,66797.0,66793.0,1.45006436]
[1718301997734,0.000946,66797.0,66793.0,1.45406436]
[1718301998494,0.000946,66797.0,66793.0,1.4540641]
[1718301999154,0.000946,66797.0,66793.0,0.9767321]
[1718301999403,0.000946,66797.0,66793.0,0.6773001]
[1718301999814,0.000946,66797.0,66793.0,0.9767321]
[1718302000175,0.000946,66797.0,66793.0,0.6773001]
[1718302000665,0.000946,66797.0,66793.0,0.9767321]
[1718302000908,0.000946,66797.0,66793.0,0.6773001]
[1718302001551,0.000946,66797.0,66793.0,0.67730199]
[1718302002844,0.000946,66797.0,66793.0,0.67730499]
[1718302003047,0.000946,66797.0,66793.0,0.65730499]
[1718302003265,0.0934,66794.0,66793.0,0.72830499]
[1718302003465,0.0934,66794.0,66793.0,0.74777403]
[1718302003823,0.0934,66794.0,66793.0,0.74777455]
[1718302004949,0.0934,66794.0,66793.0,0.67677455]
[1718302005204,0.0934,66794.0,66793.0,0.74777455]
[1718302005320,0.0934,66794.0,66793.0,0.62358763]
[1718302005526,0.0934,66794.0,66793.0,0.74777444]
[1718302006358,0.0934,66794.0,66793.0,0.88223071]
[1718302008374,0.0934,66794.0,66793.0,0.62358763]
[1718302008735,0.0934,66794.0,66793.0,0.74777445]
[1718302009381,0.0934,66794.0,66793.0,0.62358763]
[1718302009578,0.0934,66794.0,66793.0,0.74777445]
[1718302010217,0.0934,66794.0,66793.0,0.62358763]
[1718302010555,0.0934,66794.0,66793.0,0.74777444]
[1718302010679,0.0934,66794.0,66793.0,0.59805844]
[1718302011479,0.0934,66794.0,66793.0,0.47387163]
[1718302011707,0.0934,66794.0,66793.0,0.59805844]
[1718302012081,0.0934,66794.0,66793.0,0.74777444]
[1718302012688,0.0934,66794.0,66793.0,0.62358763]
[1718302012855,0.0934,66794.0,66793.0,0.74777445]
[1718302013094,0.0934,66794.0,66793.0,0.76777445]
[1718302013226,0.0934,66794.0,66793.0,0.72830541]
[1718302014588,0.0934,66794.0,66793.0,0.60411859]
[1718302014787,0.0934,66794.0,66793.0,0.74830541]
[1718302015166,0.0934,66794.0,66793.0,0.7483054]
[1718302015793,0.0934,66794.0,66793.0,0.7283054]
[1718302015991,0.0934,66794.0,66793.0,0.74624375]
[1718302016232,0.0934,66794.0,66793.0,0.62205694]
[1718302016432,0.0934,66794.0,66793.0,0.74624387]
[1718302016638,0.0934,66794.0,66793.0,0.64205694]
[1718302016846,0.0934,66794.0,66793.0,0.74624387]
[1718302017260,0.0934,66794.0,66793.0,0.76624387]
[1718302017676,0.0934,66794.0,66793.0,0.64205694]
[1718302017881,0.0934,66794.0,66793.0,0.76624377]
[1718302018050,0.0148,66794.0,66793.0,0.76624377]
[1718302018291,0.0148,66794.0,66793.0,1.06567577]
[1718302018504,0.0148,66794.0,66793.0,1.11131822]
[1718302018705,0.0148,66794.0,66793.0,0.98713139]
[1718302018912,0.0148,66794.0,66793.0,1.11130919]
[1718302019735,0.01805873,66814.0,66813.0,0.149671]
[1718302020012,0.00940501,66833.0,66829.0,0.2]
[1718302020184,0.00940501,66833.0,66832.0,0.299628]
[1718302020392,0.00940501,66833.0,66832.0,0.66109785]
[1718302020628,0.00940501,66833.0,66832.0,0.87774968]
[1718302020839,0.00940501,66833.0,66832.0,0.94866857]
[1718302021043,0.00940501,66833.0,66832.0,1.00963357]
[1718302021209,0.00940501,66833.0,66832.0,1.8676005]
[1718302021440,0.00940501,66833.0,66832.0,1.8129355]
[1718302021652,0.00940501,66833.0,66832.0,1.17205857]
[1718302021859,0.00940501,66833.0,66832.0,0.54018493]
[1718302022065,0.00940501,66833.0,66832.0,0.68367611]
[1718302022264,0.08630501,66833.0,66832.0,0.40384993]
[1718302022454,0.08630501,66833.0,66832.0,0.50384993]
[1718302022691,0.08630501,66833.0,66832.0,0.41284993]
[1718302022849,0.08630501,66833.0,66832.0,0.4749139]
[1718302023054,0.08630501,66833.0,66832.0,0.4659139]
[1718302023055,0.15270501,66833.0,66832.0,0.4659139]
[1718302023263,0.15270501,66833.0,66832.0,0.6155419]
[1718302023486,0.15270501,66833.0,66832.0,0.57746022]
[1718302023704,0.15270501,66833.0,66832.0,0.43934348]
[1718302023843,0.15270501,66833.0,66832.0,0.43935081]
[1718302024057,0.15270501,66833.0,66832.0,0.50141193]
[1718302024266,0.15270501,66833.0,66832.0,0.65103993]
[1718302024476,0.15270501,66833.0,66832.0,0.68897881]
[1718302024477,0.07580501,66833.0,66832.0,0.68897881]
[1718302024688,0.07580501,66833.0,66832.0,0.56485124]
[1718302024928,0.07580501,66833.0,66832.0,0.44071871]
[1718302025128,0.07580501,66833.0,66832.0,0.75103168]
[1718302025363,0.07780501,66833.0,66832.0,0.44071871]
[1718302025783,0.07780501,66833.0,66832.0,0.4407185]
[1718302026190,0.08180501,66833.0,66832.0,0.4407185]
[1718302026418,0.01540501,66833.0,66832.0,0.4607185]
[1718302026626,0.01540501,66833.0,66832.0,1.25568337]
[1718302026833,0.01540501,66833.0,66832.0,1.58002223]
[1718302027036,0.01540501,66833.0,66832.0,1.51314623]
[1718302027238,0.01540501,66833.0,66832.0,1.83032119]
[1718302027449,0.01540501,66833.0,66832.0,1.5600662]
[1718302027665,0.01540501,66833.0,66832.0,1.37392015]
[1718302027666,0.01340501,66833.0,66832.0,1.37392015]
[1718302027878,0.00940501,66834.0,66832.0,2.19927647]
[1718302028079,0.000946,66845.0,66844.0,0.469602]
[1718302028317,0.000946,66845.0,66844.0,1.83112047]
[1718302028537,0.000946,66845.0,66844.0,3.89145449]
[1718302028746,0.000946,66845.0,66844.0,1.73864621]
[1718302028969,0.000946,66845.0,66844.0,2.9094065]
[1718302029178,0.000946,66845.0,66844.0,0.80116858]
[1718302029375,0.000946,66845.0,66844.0,0.36683793]
[1718302029576,0.064946,66845.0,66844.0,0.47125433]
[1718302029808,0.064946,66845.0,66844.0,0.34716279]
[1718302029977,0.064946,66845.0,66844.0,0.37992924]
[1718302030246,0.147246,66845.0,66844.0,0.09730502]
[1718302030459,0.147246,66845.0,66844.0,0.02280502]
[1718302030674,0.147246,66845.0,66844.0,0.17240702]
[1718302030880,0.147246,66845.0,66844.0,0.16340702]
[1718302031319,0.000946,66845.0,66844.0,0.86091102]
[1718302031513,0.000946,66845.0,66844.0,0.54170702]
[1718302031710,0.000946,66845.0,66844.0,0.53270702]
[1718302032131,0.000946,66845.0,66844.0,0.65270702]
[1718302032335,0.000946,66845.0,66844.0,0.48610502]
[1718302032528,0.000946,66845.0,66844.0,0.63570702]
[1718302033394,0.000946,66845.0,66844.0,0.10880502]
[1718302033764,0.000946,66845.0,66844.0,0.25840702]
[1718302033969,0.000946,66845.0,66844.0,0.26781202]
[1718302037396,0.000946,66845.0,66844.0,0.56701602]
[1718302037809,0.000946,66845.0,66844.0,0.26781202]
[1718302039505,0.000946,66845.0,66844.0,0.39190362]
[1718302039732,0.000946,66845.0,66844.0,0.41190362]
[1718302039977,0.000946,66845.0,66844.0,1.72426415]
[1718302040226,0.000946,66845.0,66844.0,2.32238014]
[1718302040483,0.000946,66845.0,66844.0,2.69460817]
[1718302040727,0.000946,66845.0,66844.0,2.29540417]
[1718302040962,0.000946,66845.0,66844.0,1.39555939]
[1718302041202,0.000946,66845.0,66844.0,0.68062776]
[1718302041411,0.000946,66845.0,66844.0,0.28781202]
[1718302041606,0.000946,66845.0,66844.0,0.94825912]
[1718302041824,0.000946,66845.0,66844.0,1.33053995]
[1718302042033,0.000946,66845.0,66844.0,1.64073434]
[1718302042758,0.000946,66845.0,66844.0,1.93993834]
[1718302042967,0.000946,66845.0,66844.0,2.48251834]
[1718302043172,0.000946,66845.0,66844.0,1.67140122]
[1718302043356,0.000946,66845.0,66844.0,1.54609222]
[1718302043483,0.000946,66845.0,66844.0,1.74609222]
[1718302044142,0.000946,66845.0,66844.0,1.43589783]
[1718302044646,0.000946,66845.0,66844.0,1.66220679]
[1718302045005,0.000946,66845.0,66844.0,1.24153291]
[1718302045446,0.000946,66845.0,66844.0,1.42907491]
[1718302045660,0.000946,66845.0,66844.0,1.62907491]
[1718302046038,0.000946,66845.0,66844.0,1.92827891]
[1718302046671,0.000946,66845.0,66844.0,2.11439669]
[1718302047707,0.000946,66845.0,66844.0,2.11439607]
[1718302048528,0.000946,66845.0,66844.0,1.92827891]
[1718302048719,0.000946,66845.0,66844.0,2.11439591]
[1718302049538,0.000946,66845.0,66844.0,2.11439602]
[1718302050550,0.000946,66845.0,66844.0,2.11439624]
[1718302050775,0.000946,66845.0,66844.0,2.11439607]
[1718302051181,0.000946,66845.0,66844.0,1.72685407]
[1718302052092,0.000946,66845.0,66844.0,2.00220407]
[1718302052516,0.000946,66845.0,66844.0,2.00220532]
[1718302052727,0.000946,66845.0,66844.0,2.00220517]
[1718302053503,0.000946,66845.0,66844.0,1.72685517]
[1718302053769,0.000946,66845.0,66844.0,1.72585517]
[1718302054196,0.000946,66845.0,66844.0,1.73485517]
[1718302054531,0.000946,66845.0,66844.0,1.73185528]
[1718302054773,0.000946,66845.0,66844.0,1.66981598]
[1718302055011,0.000946,66845.0,66844.0,2.40860507]
[1718302055248,0.000946,66845.0,66844.0,3.67771007]
[1718302055559,1e-08,66846.0,66845.0,1.205597]
[1718302055717,2e-08,66849.0,66848.0,0.519186]
[1718302055959,2e-08,66849.0,66848.0,1.57814563]
[1718302056144,2e-08,66849.0,66848.0,1.72532356]
[1718302057078,2e-08,66849.0,66848.0,2.47328856]
[1718302057334,2e-08,66849.0,66848.0,2.77247456]
[1718302057578,2e-08,66849.0,66848.0,2.64839549]
[1718302057814,2e-08,66849.0,66848.0,2.48226559]
[1718302058049,2e-08,66849.0,66848.0,2.18307959]
[1718302058748,2e-08,66849.0,66848.0,2.05902349]
[1718302059005,0.000946,66861.0,66860.0,0.768698]
[1718302059223,0.000946,66861.0,66860.0,2.52552262]
[1718302059485,0.00469349,66864.0,66863.0,0.568678]
[1718302059704,0.00469349,66864.0,66863.0,1.54629766]
[1718302059919,0.00469349,66864.0,66863.0,2.52376266]
[1718302060148,0.00469349,66864.0,66863.0,2.52914059]
[1718302060335,0.00469349,66864.0,66863.0,2.85125959]
[1718302060531,0.00469349,66864.0,66863.0,2.75125959]
[1718302060839,0.00469349,66864.0,66863.0,2.6272014]
[1718302061057,0.00469349,66864.0,66863.0,2.75123811]
[1718302061276,0.00469349,66864.0,66863.0,2.78118811]
[1718302061465,0.00569349,66864.0,66863.0,2.78118811]
[1718302061757,0.00569349,66864.0,66863.0,3.60397192]
[1718302061995,0.00569349,66864.0,66863.0,3.60396921]
[1718302062434,0.00569349,66864.0,66863.0,2.62650421]
[1718302062651,0.00569349,66864.0,66863.0,2.1613204]
[1718302062874,0.00569349,66864.0,66863.0,4.0230704]
[1718302063080,0.00569349,66864.0,66863.0,4.62228816]
[1718302063258,0.00569349,66864.0,66863.0,4.66768875]
[1718302063500,0.00940501,66867.0,66866.0,1.504467]
[1718302063699,0.00940501,66867.0,66866.0,2.72074342]
[1718302063975,0.00940501,66867.0,66866.0,2.80712572]
[1718302064184,0.00940501,66867.0,66866.0,4.44505272]
[1718302064393,0.00940501,66867.0,66866.0,4.96023653]
[1718302064625,0.00940501,66867.0,66866.0,5.06442284]
[1718302064831,0.02698969,66908.0,66867.0,0.36955]
[1718302064832,0.50511975,66887.0,66867.0,0.36955]
[1718302065058,0.07420501,66868.0,66867.0,1.55760603]
[1718302065290,0.07420501,66868.0,66867.0,1.11989758]
[1718302065503,0.07420501,66868.0,66867.0,1.23061839]
[1718302066189,0.07420501,66868.0,66867.0,1.27504531]
[1718302066478,0.07420501,66868.0,66867.0,1.57414631]
[1718302066674,0.07420501,66868.0,66867.0,1.61087935]
[1718302066891,0.07420501,66868.0,66867.0,1.40955061]
[1718302067110,0.07420501,66868.0,66867.0,1.39155061]
[1718302067318,0.07420501,66868.0,66867.0,1.39160542]
[1718302067546,0.07420501,66868.0,66867.0,1.69570642]
[1718302067992,0.07420501,66868.0,66867.0,1.48283573]
[1718302068192,0.07420501,66868.0,66867.0,1.69568959]
[1718302068397,0.07420501,66868.0,66867.0,1.60687243]
[1718302068611,0.07420501,66868.0,66867.0,1.40374989]
[1718302068612,0.00940501,66868.0,66867.0,1.40374989]
[1718302068831,0.00940501,66868.0,66867.0,1.58980729]
[1718302069049,0.00940501,66868.0,66867.0,1.31250729]
[1718302069254,0.00940501,66868.0,66867.0,2.02397257]
[1718302069456,0.00940501,66868.0,66867.0,2.01294148]
[1718302069878,0.00940501,66868.0,66867.0,2.24354148]
[1718302070495,0.00940501,66868.0,66867.0,2.14354148]
[1718302070696,0.00940501,66868.0,66867.0,2.24354148]
[1718302071152,0.00940501,66868.0,66867.0,2.24352535]
[1718302072012,0.00940501,66868.0,66867.0,2.1194943]
[1718302072240,0.00940501,66868.0,66867.0,2.14352534]
[1718302072460,0.00940501,66868.0,66867.0,2.09352534]
[1718302072677,0.00940501,66868.0,66867.0,2.26433153]
[1718302073127,0.00940501,66868.0,66867.0,2.15332575]
[1718302073342,0.00940501,66868.0,66867.0,1.85422475]
[1718302073558,0.00940501,66868.0,66867.0,2.01524365]
[1718302073775,0.00940501,66868.0,66867.0,1.19722375]
[1718302074000,0.08820501,66868.0,66867.0,1.19722375]
[1718302074234,0.08820501,66868.0,66867.0,1.12506689]
[1718302074444,0.15050501,66868.0,66867.0,1.17169021]
[1718302074647,0.15050501,66868.0,66867.0,0.61119696]
[1718302074905,0.15050501,66868.0,66867.0,0.37327681]
[1718302075125,0.15050501,66868.0,66867.0,0.24924026]
[1718302075322,0.15050501,66868.0,66867.0,0.20113161]
[1718302075561,0.15050501,66868.0,66867.0,0.19413161]
[1718302075990,0.15050501,66868.0,66867.0,0.20013161]
[1718302076248,0.15050501,66868.0,66867.0,0.2001352]
[1718302076465,0.15050501,66868.0,66867.0,0.1891352]
[1718302076690,0.15050501,66868.0,66867.0,0.2921352]
[1718302076900,0.15050501,66868.0,66867.0,0.2951352]
[1718302077101,0.15050501,66868.0,66867.0,0.2921352]
[1718302077315,0.15050501,66868.0,66867.0,0.2931352]
[1718302077529,0.30005301,66868.0,66867.0,0.0092823]
[1718302077934,0.30005301,66868.0,66867.0,0.004]
[1718302078169,0.30005301,66868.0,66867.0,0.003]
[1718302078797,0.1407,66866.0,66854.0,0.11786881]
[1718302079008,0.063,66862.0,66855.0,0.31017667]
[1718302079214,0.063,66862.0,66857.0,0.149571]
[1718302079424,0.063,66862.0,66858.0,0.1]
[1718302079638,0.063,66862.0,66859.0,0.12908874]
[1718302079848,0.063,66862.0,66860.0,0.22407494]
[1718302080052,0.063,66862.0,66861.0,0.12407494]
[1718302080255,0.063,66862.0,66861.0,0.0050138]
[1718302080469,0.063,66862.0,66861.0,0.12407494]
[1718302080689,0.063,66862.0,66861.0,0.22913186]